[Event "Titled Tuesday Blitz April 25 Late 2023"]
[White "Van Foreest, Machteld"]
[Black "Narva, Triin"]
[WhiteFideId "1051563"]
[BlackFideId "4502680"]
[WhiteElo "2018"]
[BlackElo "1944"]
[Result "0-1"]
[Round "05"]
[TimeControl "180+2"]
[Date "2023.04.25"]
[WhiteClock "0:00:29"]
[BlackClock "0:00:29"]

1. e4 {[%clk 0:03:00]}  d5 {[%clk 0:03:00]} 2. exd5 {[%clk 0:02:59]}  Qxd5 {[%clk 0:03:01]} 3. Nf3 {[%clk 0:02:58]}  Bg4 {[%clk 0:03:00]} 4. Nc3 {[%clk 0:02:57]}  Qe6+ {[%clk 0:02:50]} 5. Qe2 {[%clk 0:02:54]}  Qd7 {[%clk 0:02:38]} 6. h3 {[%clk 0:02:47]}  Bxf3 {[%clk 0:02:17]} 7. Qxf3 {[%clk 0:02:47]}  c6 {[%clk 0:02:17]} 8. Bc4 {[%clk 0:02:45]}  Nf6 {[%clk 0:02:17]} 9. O-O {[%clk 0:02:43]}  e6 {[%clk 0:02:16]} 10. d3 {[%clk 0:02:28]}  b5 {[%clk 0:02:12]} 11. Bxb5 {[%clk 0:02:19]}  Bb4 {[%clk 0:02:09]} 12. Bc4 {[%clk 0:02:17]}  O-O {[%clk 0:02:08]} 13. Bg5 {[%clk 0:02:16]}  Nd5 {[%clk 0:02:07]} 14. Nxd5 {[%clk 0:02:12]}  cxd5 {[%clk 0:02:07]} 15. Bb3 {[%clk 0:02:10]}  a5 {[%clk 0:02:04]} 16. a4 {[%clk 0:02:07]}  Nc6 {[%clk 0:02:00]} 17. c3 {[%clk 0:02:06]}  Bd6 {[%clk 0:01:58]} 18. Rfe1 {[%clk 0:02:04]}  Rab8 {[%clk 0:01:49]} 19. Qd1 {[%clk 0:01:32]}  Qb7 {[%clk 0:01:42]} 20. Bc2 {[%clk 0:01:18]}  Qxb2 {[%clk 0:01:42]} 21. d4 {[%clk 0:01:17]}  Qxc3 {[%clk 0:01:39]} 22. Rc1 {[%clk 0:01:16]}  Qxd4 {[%clk 0:01:06]} 23. Bxh7+ {[%clk 0:01:02]}  Kxh7 {[%clk 0:01:06]} 24. Qh5+ {[%clk 0:01:03]}  Kg8 {[%clk 0:01:02]} 25. Rxc6 {[%clk 0:01:03]}  Bf4 {[%clk 0:00:35]} 26. Qg4 {[%clk 0:00:48]}  Qb4 {[%clk 0:00:31]} 27. Bf6 {[%clk 0:00:29]}  Qxe1# {[%clk 0:00:29]} 0-1


[Site "https://www.chess.com"]

[Event "Titled Tuesday Blitz April 25 Late 2023"]
[White "Ansh M Shah"]
[Black "Winkels, Marcel"]
[WhiteFideId "25033379"]
[BlackFideId "1003887"]
[WhiteElo "2084"]
[BlackElo "1900"]
[Result "1-0"]
[Round "05"]
[TimeControl "180+2"]
[Date "2023.04.25"]
[WhiteClock "0:00:13"]
[BlackClock "0:00:06"]

1. d4 {[%clk 0:03:00]}  Nf6 {[%clk 0:02:59]} 2. c4 {[%clk 0:03:01]}  g6 {[%clk 0:02:59]} 3. h4 {[%clk 0:02:59]}  c5 {[%clk 0:02:58]} 4. d5 {[%clk 0:02:58]}  b5 {[%clk 0:02:58]} 5. cxb5 {[%clk 0:02:59]}  a6 {[%clk 0:02:57]} 6. e3 {[%clk 0:02:59]}  Bg7 {[%clk 0:02:51]} 7. Nc3 {[%clk 0:02:58]}  O-O {[%clk 0:02:50]} 8. Nf3 {[%clk 0:02:59]}  d6 {[%clk 0:02:42]} 9. a4 {[%clk 0:02:58]}  Qa5 {[%clk 0:02:38]} 10. Bd2 {[%clk 0:02:57]}  Nbd7 {[%clk 0:02:28]} 11. e4 {[%clk 0:02:40]}  axb5 {[%clk 0:02:24]} 12. Bxb5 {[%clk 0:02:37]}  Ba6 {[%clk 0:02:22]} 13. O-O {[%clk 0:02:34]}  Rfb8 {[%clk 0:02:21]} 14. h5 {[%clk 0:02:00]}  Bxb5 {[%clk 0:02:08]} 15. Nxb5 {[%clk 0:01:59]}  Qd8 {[%clk 0:01:59]} 16. hxg6 {[%clk 0:01:55]}  hxg6 {[%clk 0:01:56]} 17. Re1 {[%clk 0:01:54]}  Ng4 {[%clk 0:01:53]} 18. Bc3 {[%clk 0:01:35]}  Nge5 {[%clk 0:01:35]} 19. Nxe5 {[%clk 0:01:28]}  Nxe5 {[%clk 0:01:32]} 20. f4 {[%clk 0:01:23]}  Nc4 {[%clk 0:01:30]} 21. Bxg7 {[%clk 0:01:24]}  Kxg7 {[%clk 0:01:29]} 22. Qc2 {[%clk 0:01:22]}  Nb6 {[%clk 0:01:25]} 23. b3 {[%clk 0:01:13]}  Nd7 {[%clk 0:01:04]} 24. Qc3+ {[%clk 0:00:58]}  Kg8 {[%clk 0:01:02]} 25. e5 {[%clk 0:00:53]}  Nf8 {[%clk 0:01:01]} 26. Re3 {[%clk 0:00:49]}  Rxb5 {[%clk 0:00:53]} 27. axb5 {[%clk 0:00:43]}  Rxa1+ {[%clk 0:00:52]} 28. Qxa1 {[%clk 0:00:44]}  Qb6 {[%clk 0:00:52]} 29. Qa6 {[%clk 0:00:40]}  Qb8 {[%clk 0:00:46]} 30. b6 {[%clk 0:00:33]}  Nd7 {[%clk 0:00:45]} 31. Qa7 {[%clk 0:00:29]}  Qd8 {[%clk 0:00:33]} 32. b7 {[%clk 0:00:20]}  Kg7 {[%clk 0:00:29]} 33. exd6 {[%clk 0:00:17]}  exd6 {[%clk 0:00:29]} 34. b4 {[%clk 0:00:17]}  c4 {[%clk 0:00:18]} 35. Qd4+ {[%clk 0:00:17]}  Kg8 {[%clk 0:00:14]} 36. Qxc4 {[%clk 0:00:17]}  Qb6 {[%clk 0:00:13]} 37. Kf2 {[%clk 0:00:17]}  Qxb7 {[%clk 0:00:13]} 38. Re8+ {[%clk 0:00:15]}  Nf8 {[%clk 0:00:13]} 39. Qc8 {[%clk 0:00:14]}  Qb6+ {[%clk 0:00:11]} 40. Kf3 {[%clk 0:00:14]}  Qd4 {[%clk 0:00:06]} 41. Rxf8+ {[%clk 0:00:14]}  Kg7 {[%clk 0:00:06]} 42. Rg8+ {[%clk 0:00:14]}  Kf6 {[%clk 0:00:06]} 43. Qd8+ {[%clk 0:00:13]}  Kf5 {[%clk 0:00:06]} 44. Qg5# {[%clk 0:00:13]} 1-0


[Site "https://www.chess.com"]

[Event "Titled Tuesday Blitz April 25 Late 2023"]
[White "Oliveira, Tiago Batista"]
[Black "Fajdetic, Hrvoje"]
[WhiteFideId "2108291"]
[BlackFideId "14501945"]
[WhiteElo "1962"]
[BlackElo "2185"]
[Result "0-1"]
[Round "05"]
[TimeControl "180+2"]
[Date "2023.04.25"]
[WhiteClock "0:00:03"]
[BlackClock "0:00:50"]

1. d4 {[%clk 0:03:00]}  e6 {[%clk 0:02:58]} 2. c4 {[%clk 0:02:55]}  f5 {[%clk 0:02:57]} 3. Nf3 {[%clk 0:02:54]}  Nf6 {[%clk 0:02:57]} 4. g3 {[%clk 0:02:53]}  Be7 {[%clk 0:02:55]} 5. Bg2 {[%clk 0:02:52]}  O-O {[%clk 0:02:56]} 6. O-O {[%clk 0:02:49]}  d6 {[%clk 0:02:56]} 7. b3 {[%clk 0:02:44]}  Ne4 {[%clk 0:02:55]} 8. Bb2 {[%clk 0:02:34]}  Bf6 {[%clk 0:02:54]} 9. Nfd2 {[%clk 0:02:29]}  Nxd2 {[%clk 0:02:49]} 10. Qxd2 {[%clk 0:02:27]}  Nc6 {[%clk 0:02:50]} 11. e3 {[%clk 0:02:23]}  e5 {[%clk 0:02:47]} 12. d5 {[%clk 0:02:12]}  Ne7 {[%clk 0:02:36]} 13. Nc3 {[%clk 0:02:07]}  Ng6 {[%clk 0:02:33]} 14. Rac1 {[%clk 0:02:06]}  f4 {[%clk 0:02:27]} 15. Ne4 {[%clk 0:01:45]}  Bg4 {[%clk 0:02:18]} 16. exf4 {[%clk 0:01:40]}  exf4 {[%clk 0:02:15]} 17. Nxf6+ {[%clk 0:01:40]}  gxf6 {[%clk 0:02:05]} 18. gxf4 {[%clk 0:01:33]}  Qd7 {[%clk 0:02:01]} 19. Qe3 {[%clk 0:01:19]}  Qf5 {[%clk 0:02:00]} 20. h3 {[%clk 0:00:22]}  Bh5 {[%clk 0:01:51]} 21. Be4 {[%clk 0:00:16]}  Qxf4 {[%clk 0:01:44]} 22. Bxg6 {[%clk 0:00:16]}  Qxe3 {[%clk 0:01:44]} 23. fxe3 {[%clk 0:00:16]}  Bxg6 {[%clk 0:01:39]} 24. Rxf6 {[%clk 0:00:14]}  Rxf6 {[%clk 0:01:38]} 25. Bxf6 {[%clk 0:00:13]}  Re8 {[%clk 0:01:39]} 26. Bd4 {[%clk 0:00:12]}  a6 {[%clk 0:01:35]} 27. Rf1 {[%clk 0:00:12]}  b5 {[%clk 0:01:32]} 28. Rf4 {[%clk 0:00:11]}  bxc4 {[%clk 0:01:32]} 29. bxc4 {[%clk 0:00:11]}  Rb8 {[%clk 0:01:31]} 30. c5 {[%clk 0:00:10]}  dxc5 {[%clk 0:01:21]} 31. Bxc5 {[%clk 0:00:10]}  Rb5 {[%clk 0:01:21]} 32. Rc4 {[%clk 0:00:08]}  Bd3 {[%clk 0:01:15]} 33. Rc3 {[%clk 0:00:07]}  Be4 {[%clk 0:01:15]} 34. d6 {[%clk 0:00:06]}  cxd6 {[%clk 0:01:03]} 35. Bxd6 {[%clk 0:00:06]}  Rb1+ {[%clk 0:01:00]} 36. Kh2 {[%clk 0:00:06]}  Rb2+ {[%clk 0:01:01]} 37. Kg3 {[%clk 0:00:06]}  Rxa2 {[%clk 0:01:00]} 38. Kf4 {[%clk 0:00:06]}  Bd5 {[%clk 0:00:54]} 39. Ke5 {[%clk 0:00:04]}  Bg2 {[%clk 0:00:52]} 40. Rc8+ {[%clk 0:00:03]}  Kf7 {[%clk 0:00:51]} 41. Rc7+ {[%clk 0:00:03]}  Kg6 {[%clk 0:00:50]} 0-1


[Site "https://www.chess.com"]

[Event "Titled Tuesday Blitz April 25 Late 2023"]
[White "Balague Camps, Marc"]
[Black "Toma, Katarzyna"]
[WhiteFideId "2297914"]
[BlackFideId "1119907"]
[WhiteElo "2089"]
[BlackElo "2149"]
[Result "1-0"]
[Round "05"]
[TimeControl "180+2"]
[Date "2023.04.25"]
[WhiteClock "0:00:59"]
[BlackClock "0:00:03"]

1. d4 {[%clk 0:02:50]}  Nf6 {[%clk 0:02:58]} 2. c4 {[%clk 0:02:50]}  g6 {[%clk 0:02:56]} 3. Nc3 {[%clk 0:02:50]}  d5 {[%clk 0:02:55]} 4. Nf3 {[%clk 0:02:49]}  Bg7 {[%clk 0:02:54]} 5. Qb3 {[%clk 0:02:48]}  dxc4 {[%clk 0:02:52]} 6. Qxc4 {[%clk 0:02:49]}  a6 {[%clk 0:02:50]} 7. e4 {[%clk 0:02:46]}  b5 {[%clk 0:02:48]} 8. Qb3 {[%clk 0:02:47]}  c5 {[%clk 0:02:47]} 9. dxc5 {[%clk 0:02:46]}  Be6 {[%clk 0:02:37]} 10. Qc2 {[%clk 0:02:43]}  Nc6 {[%clk 0:02:36]} 11. Be3 {[%clk 0:02:43]}  Qa5 {[%clk 0:02:29]} 12. Nd2 {[%clk 0:02:23]}  Ng4 {[%clk 0:02:06]} 13. Be2 {[%clk 0:02:23]}  Nxe3 {[%clk 0:02:05]} 14. fxe3 {[%clk 0:02:24]}  b4 {[%clk 0:01:40]} 15. Qa4 {[%clk 0:02:24]}  Qxc5 {[%clk 0:01:31]} 16. Nd1 {[%clk 0:02:19]}  Bd7 {[%clk 0:01:12]} 17. Qb3 {[%clk 0:02:10]}  O-O {[%clk 0:01:08]} 18. Qd5 {[%clk 0:02:08]}  Qa7 {[%clk 0:00:50]} 19. O-O {[%clk 0:02:00]}  Rad8 {[%clk 0:00:45]} 20. Qc4 {[%clk 0:01:59]}  a5 {[%clk 0:00:39]} 21. Nf3 {[%clk 0:01:55]}  Ne5 {[%clk 0:00:31]} 22. Qb3 {[%clk 0:01:43]}  Be6 {[%clk 0:00:26]} 23. Qa4 {[%clk 0:01:43]}  Nc4 {[%clk 0:00:20]} 24. Kh1 {[%clk 0:01:40]}  Nxe3 {[%clk 0:00:19]} 25. Nxe3 {[%clk 0:01:40]}  Qxe3 {[%clk 0:00:19]} 26. Rae1 {[%clk 0:01:40]}  Qb6 {[%clk 0:00:18]} 27. e5 {[%clk 0:01:35]}  Rc8 {[%clk 0:00:15]} 28. Bd1 {[%clk 0:01:30]}  Rfd8 {[%clk 0:00:15]} 29. Ng5 {[%clk 0:01:27]}  Bd5 {[%clk 0:00:14]} 30. Bb3 {[%clk 0:01:26]}  h6 {[%clk 0:00:12]} 31. Bxd5 {[%clk 0:01:22]}  Rxd5 {[%clk 0:00:12]} 32. Qb3 {[%clk 0:01:23]}  Qc5 {[%clk 0:00:09]} 33. Nxf7 {[%clk 0:01:19]}  Kh7 {[%clk 0:00:09]} 34. Qh3 {[%clk 0:01:09]}  Qc2 {[%clk 0:00:03]} 35. Ng5+ {[%clk 0:01:01]}  Kh8 {[%clk 0:00:03]} 36. Ne6 {[%clk 0:00:59]} 1-0


[Site "https://www.chess.com"]

[Event "Titled Tuesday Blitz April 25 Late 2023"]
[White "Ricaurte Lopez, Juan Carlos"]
[Black "Freile Martin, Javier"]
[WhiteFideId "3600327"]
[BlackFideId "3600165"]
[WhiteElo "2200"]
[BlackElo "2320"]
[Result "0-1"]
[Round "05"]
[TimeControl "180+2"]
[Date "2023.04.25"]
[WhiteClock "0:00:07"]
[BlackClock "0:00:46"]

1. e4 {[%clk 0:03:00]}  c5 {[%clk 0:02:58]} 2. Nf3 {[%clk 0:02:57]}  e6 {[%clk 0:02:58]} 3. d4 {[%clk 0:02:52]}  cxd4 {[%clk 0:02:58]} 4. Nxd4 {[%clk 0:02:52]}  Bc5 {[%clk 0:02:58]} 5. Nb3 {[%clk 0:02:50]}  Bb6 {[%clk 0:02:57]} 6. Bd3 {[%clk 0:02:46]}  Nc6 {[%clk 0:02:57]} 7. O-O {[%clk 0:02:45]}  Nge7 {[%clk 0:02:57]} 8. a4 {[%clk 0:02:44]}  a6 {[%clk 0:02:54]} 9. Bf4 {[%clk 0:02:39]}  O-O {[%clk 0:02:53]} 10. Bd6 {[%clk 0:02:37]}  Re8 {[%clk 0:02:48]} 11. Nc3 {[%clk 0:02:29]}  Ng6 {[%clk 0:02:48]} 12. Kh1 {[%clk 0:02:27]}  Bc7 {[%clk 0:02:38]} 13. Bxc7 {[%clk 0:02:03]}  Qxc7 {[%clk 0:02:37]} 14. Qd2 {[%clk 0:01:59]}  b6 {[%clk 0:02:31]} 15. f4 {[%clk 0:01:59]}  Bb7 {[%clk 0:02:29]} 16. f5 {[%clk 0:01:57]}  exf5 {[%clk 0:02:20]} 17. exf5 {[%clk 0:01:57]}  Nge5 {[%clk 0:02:13]} 18. f6 {[%clk 0:01:55]}  Ng4 {[%clk 0:02:01]} 19. Rf4 {[%clk 0:01:20]}  Nce5 {[%clk 0:01:56]} 20. Bf5 {[%clk 0:00:58]}  Nc4 {[%clk 0:01:44]} 21. Qd4 {[%clk 0:00:50]}  Nge3 {[%clk 0:00:57]} 22. Bxh7+ {[%clk 0:00:35]}  Kxh7 {[%clk 0:00:54]} 23. Rh4+ {[%clk 0:00:29]}  Kg8 {[%clk 0:00:54]} 24. fxg7 {[%clk 0:00:18]}  Qe5 {[%clk 0:00:48]} 25. Qxe5 {[%clk 0:00:07]}  Rxe5 {[%clk 0:00:46]} 0-1


[Site "https://www.chess.com"]

[Event "Titled Tuesday Blitz April 25 Late 2023"]
[White "Alexikov, Alexander"]
[Black "yoriiiis"]
[WhiteFideId "14103958"]
[WhiteElo "2186"]
[BlackElo "2127"]
[Result "1-0"]
[Round "05"]
[TimeControl "180+2"]
[Date "2023.04.25"]
[WhiteClock "0:00:57"]
[BlackClock "0:00:03"]

1. e4 {[%clk 0:02:55]}  c5 {[%clk 0:03:00]} 2. Nf3 {[%clk 0:02:54]}  d6 {[%clk 0:02:59]} 3. d4 {[%clk 0:02:54]}  cxd4 {[%clk 0:02:59]} 4. Nxd4 {[%clk 0:02:54]}  Nf6 {[%clk 0:03:00]} 5. Nc3 {[%clk 0:02:54]}  a6 {[%clk 0:03:00]} 6. Be2 {[%clk 0:02:54]}  Nbd7 {[%clk 0:03:00]} 7. Be3 {[%clk 0:02:54]}  b5 {[%clk 0:02:59]} 8. f3 {[%clk 0:02:51]}  Bb7 {[%clk 0:02:59]} 9. O-O {[%clk 0:02:50]}  e6 {[%clk 0:02:58]} 10. a4 {[%clk 0:02:48]}  b4 {[%clk 0:02:56]} 11. Na2 {[%clk 0:02:47]}  d5 {[%clk 0:02:55]} 12. exd5 {[%clk 0:02:47]}  Nxd5 {[%clk 0:02:54]} 13. Bf2 {[%clk 0:02:47]}  Be7 {[%clk 0:02:50]} 14. c4 {[%clk 0:02:42]}  bxc3 {[%clk 0:02:45]} 15. Nxc3 {[%clk 0:02:41]}  Nxc3 {[%clk 0:02:44]} 16. bxc3 {[%clk 0:02:40]}  O-O {[%clk 0:02:44]} 17. Rb1 {[%clk 0:02:39]}  Qc7 {[%clk 0:02:41]} 18. Bg3 {[%clk 0:02:33]}  Qc8 {[%clk 0:02:25]} 19. Kh1 {[%clk 0:02:32]}  Bd5 {[%clk 0:02:20]} 20. c4 {[%clk 0:02:29]}  Bb7 {[%clk 0:01:59]} 21. Bd3 {[%clk 0:02:18]}  Nc5 {[%clk 0:01:55]} 22. Bc2 {[%clk 0:02:18]}  Rd8 {[%clk 0:01:41]} 23. Rf2 {[%clk 0:02:00]}  Bf6 {[%clk 0:01:37]} 24. Rd2 {[%clk 0:02:00]}  Qd7 {[%clk 0:01:24]} 25. Nb3 {[%clk 0:01:55]}  Qxd2 {[%clk 0:00:47]} 26. Nxd2 {[%clk 0:01:52]}  Bc3 {[%clk 0:00:47]} 27. Be1 {[%clk 0:01:45]}  Rd7 {[%clk 0:00:29]} 28. Qe2 {[%clk 0:01:44]}  Rad8 {[%clk 0:00:24]} 29. Nf1 {[%clk 0:01:41]}  Bf6 {[%clk 0:00:22]} 30. Ba5 {[%clk 0:01:34]}  Rc8 {[%clk 0:00:21]} 31. Bb4 {[%clk 0:01:30]}  g6 {[%clk 0:00:19]} 32. Ng3 {[%clk 0:01:24]}  Bg7 {[%clk 0:00:17]} 33. a5 {[%clk 0:01:18]}  e5 {[%clk 0:00:12]} 34. h4 {[%clk 0:01:11]}  Ne6 {[%clk 0:00:12]} 35. Be4 {[%clk 0:01:06]}  Bxe4 {[%clk 0:00:11]} 36. Nxe4 {[%clk 0:01:05]}  Nd4 {[%clk 0:00:11]} 37. Qd3 {[%clk 0:01:01]}  Rcd8 {[%clk 0:00:10]} 38. Nc5 {[%clk 0:00:59]}  Rd6 {[%clk 0:00:09]} 39. Nb7 {[%clk 0:00:58]}  Nf5 {[%clk 0:00:03]} 40. Nxd6 {[%clk 0:00:57]} 1-0


[Site "https://www.chess.com"]

[Event "Titled Tuesday Blitz April 25 Late 2023"]
[White "Srdanovic, Jovana"]
[Black "Kohler, Aran"]
[WhiteFideId "954810"]
[BlackFideId "1002856"]
[WhiteElo "2145"]
[BlackElo "2010"]
[Result "1/2-1/2"]
[Round "05"]
[TimeControl "180+2"]
[Date "2023.04.25"]
[WhiteClock "0:00:06"]
[BlackClock "0:00:02"]

1. d4 {[%clk 0:03:00]}  Nf6 {[%clk 0:02:58]} 2. c4 {[%clk 0:02:55]}  c5 {[%clk 0:02:58]} 3. d5 {[%clk 0:02:54]}  e6 {[%clk 0:02:58]} 4. Nc3 {[%clk 0:02:53]}  exd5 {[%clk 0:02:58]} 5. cxd5 {[%clk 0:02:54]}  d6 {[%clk 0:02:59]} 6. e4 {[%clk 0:02:53]}  g6 {[%clk 0:02:59]} 7. h3 {[%clk 0:02:52]}  Bg7 {[%clk 0:02:59]} 8. Nf3 {[%clk 0:02:52]}  O-O {[%clk 0:02:58]} 9. a4 {[%clk 0:02:52]}  Re8 {[%clk 0:02:58]} 10. Bd3 {[%clk 0:02:49]}  b6 {[%clk 0:02:54]} 11. O-O {[%clk 0:02:49]}  Ba6 {[%clk 0:02:54]} 12. Re1 {[%clk 0:02:42]}  Bxd3 {[%clk 0:02:52]} 13. Qxd3 {[%clk 0:02:42]}  Nbd7 {[%clk 0:02:52]} 14. Bf4 {[%clk 0:02:36]}  Ne5 {[%clk 0:02:48]} 15. Bxe5 {[%clk 0:02:17]}  dxe5 {[%clk 0:02:47]} 16. a5 {[%clk 0:02:08]}  Bf8 {[%clk 0:02:19]} 17. Ra2 {[%clk 0:02:06]}  Bd6 {[%clk 0:02:13]} 18. Rea1 {[%clk 0:02:06]}  Rb8 {[%clk 0:02:11]} 19. axb6 {[%clk 0:02:04]}  axb6 {[%clk 0:02:10]} 20. Nb5 {[%clk 0:02:03]}  Re7 {[%clk 0:02:01]} 21. Ra7 {[%clk 0:01:41]}  Reb7 {[%clk 0:01:49]} 22. Nd2 {[%clk 0:01:29]}  Ne8 {[%clk 0:01:48]} 23. Nc4 {[%clk 0:01:26]}  Kg7 {[%clk 0:01:28]} 24. Qc3 {[%clk 0:01:21]}  f6 {[%clk 0:01:24]} 25. Qa3 {[%clk 0:01:09]}  Qd7 {[%clk 0:01:17]} 26. Rxb7 {[%clk 0:01:04]}  Rxb7 {[%clk 0:01:16]} 27. Qa6 {[%clk 0:00:58]}  Bb8 {[%clk 0:00:40]} 28. Nxb6 {[%clk 0:00:46]}  Qf7 {[%clk 0:00:40]} 29. Nc4 {[%clk 0:00:35]}  g5 {[%clk 0:00:29]} 30. d6 {[%clk 0:00:26]}  Qd7 {[%clk 0:00:24]} 31. Ra5 {[%clk 0:00:17]}  Kf7 {[%clk 0:00:23]} 32. Nca3 {[%clk 0:00:08]}  Kg6 {[%clk 0:00:19]} 33. Nc2 {[%clk 0:00:07]}  Nxd6 {[%clk 0:00:18]} 34. Nxd6 {[%clk 0:00:06]}  Bxd6 {[%clk 0:00:18]} 35. Ne3 {[%clk 0:00:06]}  Bb8 {[%clk 0:00:15]} 36. Nc4 {[%clk 0:00:06]}  Ra7 {[%clk 0:00:15]} 37. Qb5 {[%clk 0:00:04]}  Qd1+ {[%clk 0:00:12]} 38. Kh2 {[%clk 0:00:03]}  Rxa5 {[%clk 0:00:12]} 39. Qxa5 {[%clk 0:00:04]}  Bd6 {[%clk 0:00:11]} 40. Qb5 {[%clk 0:00:03]}  Bf8 {[%clk 0:00:07]} 41. Qe8+ {[%clk 0:00:04]}  Kg7 {[%clk 0:00:06]} 42. Nb6 {[%clk 0:00:04]}  Qd2 {[%clk 0:00:02]} 43. Nd7 {[%clk 0:00:05]}  Qf4+ {[%clk 0:00:01]} 44. Kg1 {[%clk 0:00:04]}  Qc1+ {[%clk 0:00:02]} 45. Kh2 {[%clk 0:00:04]}  Qf4+ {[%clk 0:00:02]} 46. Kg1 {[%clk 0:00:05]}  Qc1+ {[%clk 0:00:02]} 47. Kh2 {[%clk 0:00:06]}  Qf4+ {[%clk 0:00:02]} 1/2-1/2


[Site "https://www.chess.com"]

[Event "Titled Tuesday Blitz April 25 Late 2023"]
[White "Figorito, Nick"]
[Black "Panico, Nick"]
[WhiteFideId "30923689"]
[BlackFideId "2026724"]
[WhiteElo "2036"]
[BlackElo "1982"]
[Result "0-1"]
[Round "05"]
[TimeControl "180+2"]
[Date "2023.04.25"]
[WhiteClock "0:00:15"]
[BlackClock "0:01:01"]

1. Nf3 {[%clk 0:03:00]}  f5 {[%clk 0:02:58]} 2. e4 {[%clk 0:03:00]}  fxe4 {[%clk 0:02:58]} 3. Ng5 {[%clk 0:03:00]}  d5 {[%clk 0:02:59]} 4. d3 {[%clk 0:03:00]}  Qd6 {[%clk 0:02:59]} 5. dxe4 {[%clk 0:02:59]}  h6 {[%clk 0:03:00]} 6. Nf3 {[%clk 0:02:30]}  dxe4 {[%clk 0:02:53]} 7. Nfd2 {[%clk 0:02:30]}  Nf6 {[%clk 0:02:50]} 8. Be2 {[%clk 0:02:22]}  g6 {[%clk 0:02:45]} 9. Nc3 {[%clk 0:02:21]}  Bg7 {[%clk 0:02:36]} 10. Ncxe4 {[%clk 0:02:19]}  Nxe4 {[%clk 0:02:36]} 11. Nxe4 {[%clk 0:02:19]}  Qxd1+ {[%clk 0:02:34]} 12. Bxd1 {[%clk 0:02:20]}  Nc6 {[%clk 0:02:29]} 13. c3 {[%clk 0:02:13]}  Bf5 {[%clk 0:02:23]} 14. Bc2 {[%clk 0:02:09]}  O-O-O {[%clk 0:02:19]} 15. O-O {[%clk 0:02:08]}  Ne5 {[%clk 0:02:13]} 16. b3 {[%clk 0:01:49]}  Nd3 {[%clk 0:02:11]} 17. Bxd3 {[%clk 0:01:36]}  Rxd3 {[%clk 0:02:12]} 18. Nc5 {[%clk 0:01:35]}  Rd5 {[%clk 0:01:58]} 19. Be3 {[%clk 0:01:34]}  Bxc3 {[%clk 0:01:52]} 20. Rac1 {[%clk 0:01:34]}  Bb2 {[%clk 0:01:45]} 21. Rcd1 {[%clk 0:01:33]}  Rhd8 {[%clk 0:01:43]} 22. Rxd5 {[%clk 0:01:32]}  Rxd5 {[%clk 0:01:44]} 23. b4 {[%clk 0:01:31]}  b6 {[%clk 0:01:41]} 24. Nb3 {[%clk 0:01:30]}  e5 {[%clk 0:01:34]} 25. Bxh6 {[%clk 0:01:29]}  c5 {[%clk 0:01:28]} 26. bxc5 {[%clk 0:01:28]}  bxc5 {[%clk 0:01:29]} 27. Na5 {[%clk 0:01:15]}  c4 {[%clk 0:01:23]} 28. Nxc4 {[%clk 0:01:12]}  Bd3 {[%clk 0:01:23]} 29. Ne3 {[%clk 0:01:13]}  Ra5 {[%clk 0:01:18]} 30. Rd1 {[%clk 0:01:06]}  e4 {[%clk 0:01:19]} 31. Rd2 {[%clk 0:00:37]}  Rxa2 {[%clk 0:01:14]} 32. g3 {[%clk 0:00:36]}  Ra1+ {[%clk 0:01:11]} 33. Kg2 {[%clk 0:00:34]}  Bc1 {[%clk 0:01:10]} 34. Rd1 {[%clk 0:00:31]}  Bb2 {[%clk 0:01:06]} 35. Rd2 {[%clk 0:00:26]}  Bc3 {[%clk 0:01:04]} 36. Nd5 {[%clk 0:00:18]}  Bxd2 {[%clk 0:01:02]} 37. Bxd2 {[%clk 0:00:19]}  a5 {[%clk 0:01:01]} 38. f3 {[%clk 0:00:15]}  a4 {[%clk 0:01:01]} 39. fxe4 {[%clk 0:00:15]}  Bxe4+ {[%clk 0:01:01]} 0-1


[Site "https://www.chess.com"]